bitfinex/quotes_BTCUSD_20241222
["timestamp","ask_amount","ask_price","bid_price","bid_amount"]
[1734885252489,0.00105137,95785.0,95775.0,0.20282]
[1734885252842,0.0124201,95783.0,95776.0,0.20882]
[1734885253072,0.0124201,95783.0,95768.0,0.208838]
[1734885253073,0.0124201,95783.0,95766.0,0.0231714]
[1734885253284,0.001,95781.0,95780.0,0.208811]
[1734885253571,0.0124201,95782.0,95781.0,0.083]
[1734885253973,0.001,95785.0,95782.0,0.417614]
[1734885254181,0.00054089,95789.0,95787.0,0.208794]
[1734885255483,0.00054089,95789.0,95786.0,0.208798]
[1734885256099,0.00054089,95789.0,95782.0,0.208805]
[1734885256383,0.00195946,95788.0,95782.0,0.208807]
[1734885256586,0.00105137,95787.0,95782.0,0.208807]
[1734885256817,0.00300995,95787.0,95782.0,0.202807]
[1734885257226,0.01242139,95786.0,95782.0,0.202807]
[1734885257359,0.01242139,95786.0,95782.0,0.411614]
[1734885257726,0.00054089,95789.0,95782.0,0.202807]
[1734885258266,0.20933289,95789.0,95775.0,0.208821]
[1734885258468,0.20933289,95789.0,95772.0,0.083]
[1734885258469,0.00105137,95788.0,95772.0,0.083]
[1734885258715,0.00301083,95788.0,95780.0,0.20881]
[1734885258869,0.00105137,95788.0,95782.0,0.001]
[1734885259163,0.00195858,95787.0,95782.0,0.001]
[1734885259295,0.00105137,95786.0,95780.0,0.20881]
[1734885259838,0.00195844,95785.0,95783.0,0.208803]
[1734885259949,0.00195844,95785.0,95781.0,0.208807]
[1734885260150,0.00159226,95789.0,95781.0,0.208807]
[1734885260407,0.00054089,95789.0,95787.0,0.208796]
[1734885260602,0.00054089,95789.0,95772.0,0.083]
[1734885260603,0.00054089,95789.0,95783.0,0.208804]
[1734885261515,0.00054089,95789.0,95781.0,0.208808]
[1734885261718,0.208794,95788.0,95774.0,0.208823]
[1734885261961,0.208794,95788.0,95772.0,0.083]
[1734885261962,0.00105137,95787.0,95772.0,0.083]
[1734885262096,0.208812,95780.0,95772.0,0.083]
[1734885262297,0.208812,95780.0,95768.0,0.75013704]
[1734885262298,0.208816,95778.0,95768.0,0.75013704]
[1734885262499,0.00105137,95777.0,95768.0,0.30158627]
[1734885263115,0.00105137,95782.0,95769.0,0.208835]
[1734885263313,0.001,95788.0,95769.0,0.208835]
[1734885263314,0.00054089,95789.0,95780.0,0.20881]
[1734885263513,0.00054089,95789.0,95772.0,0.023]
[1734885263724,0.00054089,95789.0,95774.0,0.023]
[1734885263913,0.00054089,95789.0,95785.0,0.208799]
[1734885264337,0.00054089,95789.0,95785.0,0.417599]
[1734885265166,0.00054089,95789.0,95785.0,0.208799]
[1734885265774,0.00054089,95789.0,95785.0,0.417599]
[1734885266088,0.00054089,95789.0,95785.0,0.208799]
[1734885266492,0.00054089,95789.0,95785.0,0.209799]
[1734885266698,0.00054089,95789.0,95787.0,0.208796]
[1734885266848,0.00054089,95789.0,95787.0,0.202796]
[1734885269221,0.00054089,95789.0,95788.0,0.02404398]
[1734885269452,0.00054089,95789.0,95788.0,0.023]
[1734885270323,0.00054089,95789.0,95788.0,0.1243084]
[1734885270589,0.00054089,95789.0,95788.0,0.20705227]
[1734885270727,0.00054089,95789.0,95788.0,0.2060084]
[1734885270953,0.00054089,95789.0,95788.0,0.29875767]
[1734885271749,0.00054089,95789.0,95788.0,0.29275767]
[1734885271966,0.00054089,95789.0,95788.0,0.29175767]
[1734885272174,0.00054089,95789.0,95788.0,0.29475767]
[1734885272375,0.00054089,95789.0,95788.0,0.52596153]
[1734885272709,0.00054089,95789.0,95788.0,0.52296153]
[1734885272915,0.00054089,95789.0,95788.0,0.52696153]
[1734885274624,0.00054089,95789.0,95788.0,0.9755123]
[1734885276023,0.00054089,95789.0,95788.0,1.16061962]
[1734885276934,0.00054089,95789.0,95788.0,1.15461962]
[1734885277369,0.00054089,95789.0,95788.0,1.14361962]
[1734885277565,0.00054089,95789.0,95788.0,0.9585123]
[1734885278112,0.00062659,95789.0,95788.0,0.9585123]
[1734885278899,0.00062659,95789.0,95788.0,0.79632467]
[1734885281856,0.00062659,95789.0,95788.0,0.79032467]
[1734885282622,0.00062659,95789.0,95788.0,0.65155917]
[1734885284021,0.00062659,95789.0,95788.0,0.80155917]
[1734885284421,5.9e-07,95789.0,95788.0,0.80155917]
[1734885284644,5.9e-07,95789.0,95788.0,0.84865917]
[1734885285507,5.9e-07,95789.0,95788.0,1.17310778]
[1734885285686,5.9e-07,95789.0,95788.0,1.16910778]
[1734885286223,5.9e-07,95789.0,95788.0,1.26910778]
[1734885287043,2.9e-07,95797.0,95796.0,0.2994]
[1734885287239,4.3e-07,95797.0,95796.0,0.4007084]
[1734885287640,4.3e-07,95797.0,95796.0,0.6094844]
[1734885288207,4.3e-07,95797.0,95796.0,0.93393301]
[1734885289348,4.3e-07,95797.0,95796.0,1.16459905]
[1734885291506,4.3e-07,95797.0,95796.0,0.93393301]
[1734885292669,4.3e-07,95797.0,95796.0,1.58805168]
[1734885293125,4.3e-07,95797.0,95796.0,1.59808305]
[1734885296010,4.3e-07,95797.0,95796.0,1.52798305]
[1734885296632,4.3e-07,95797.0,95796.0,0.50892156]
[1734885296834,0.04980043,95797.0,95796.0,0.50892156]
[1734885297001,0.05314516,95797.0,95796.0,0.50892156]
[1734885297231,0.05209379,95797.0,95796.0,0.50892156]
[1734885298106,0.05209379,95797.0,95788.0,0.0001714]
[1734885298354,0.20982737,95796.0,95788.0,0.0001714]
[1734885298694,0.00197137,95795.0,95788.0,0.0001714]
[1734885298911,0.00197137,95795.0,95789.0,0.208792]
[1734885298912,0.01438339,95795.0,95789.0,0.208792]
[1734885299431,0.01241202,95794.0,95789.0,0.208792]
[1734885299674,0.00196388,95793.0,95789.0,0.208792]
[1734885300001,0.01241202,95794.0,95789.0,0.208792]
[1734885300201,0.01241202,95792.0,95788.0,0.0001714]
[1734885300399,0.0019658,95791.0,95789.0,0.208792]
[1734885300603,0.01241202,95792.0,95789.0,0.208792]
[1734885300849,0.01241202,95790.0,95789.0,0.208792]
[1734885301056,0.01241202,95790.0,95788.0,0.0001714]
[1734885301262,0.00196588,95789.0,95788.0,0.0001714]
[1734885301461,0.0143779,95789.0,95788.0,0.0001714]
[1734885302096,0.01241202,95789.0,95788.0,0.0001714]
[1734885302476,0.01241202,95789.0,95788.0,0.00104388]
[1734885302691,0.01241202,95793.0,95792.0,0.208785]
[1734885303063,4.3e-07,95797.0,95792.0,0.208785]
[1734885303287,4.3e-07,95797.0,95792.0,0.41757]
[1734885305032,4.3e-07,95797.0,95794.0,0.417562]
[1734885305218,4.3e-07,95797.0,95795.0,0.00104379]
[1734885305421,4.3e-07,95797.0,95796.0,0.208776]
[1734885305594,8.613e-05,95797.0,95796.0,0.3100844]
[1734885305932,8.613e-05,95797.0,95796.0,0.75863517]
[1734885306971,8.613e-05,95797.0,95796.0,0.75263517]
[1734885307109,8.613e-05,95797.0,95796.0,0.44855077]
[1734885307314,8.613e-05,95797.0,95796.0,0.45755077]
[1734885308882,8.613e-05,95797.0,95796.0,0.44855077]
[1734885309242,8.613e-05,95797.0,95796.0,0.008]
[1734885309468,8.613e-05,95797.0,95790.0,0.208789]
[1734885309673,0.00207285,95797.0,95790.0,0.208789]
[1734885309872,0.00207285,95797.0,95796.0,0.005]
[1734885310081,8.613e-05,95797.0,95796.0,0.005]
[1734885310627,8.613e-05,95797.0,95794.0,0.417559]
[1734885311926,8.613e-05,95797.0,95794.0,0.411559]
[1734885312789,8.613e-05,95797.0,95796.0,0.005]
[1734885312915,8.613e-05,95797.0,95794.0,0.411559]
[1734885313309,8.613e-05,95797.0,95794.0,0.418559]
[1734885313774,8.613e-05,95797.0,95794.0,0.411559]
[1734885313998,8.613e-05,95797.0,95796.0,0.007]
[1734885314775,8.613e-05,95797.0,95796.0,0.00804378]
[1734885315175,8.613e-05,95797.0,95796.0,0.08384378]
[1734885315371,8.613e-05,95797.0,95796.0,0.07684378]
[1734885315973,8.613e-05,95797.0,95794.0,0.007]
[1734885316171,8.613e-05,95797.0,95789.0,0.09240547]
[1734885316172,0.0011375,95797.0,95789.0,0.09240547]
[1734885316491,0.20878,95795.0,95789.0,0.09240547]
[1734885316819,0.208784,95793.0,95789.0,0.09240547]
[1734885317040,0.208787,95791.0,95789.0,0.08640547]
[1734885317182,0.00105137,95790.0,95789.0,0.08640547]
[1734885317379,0.208792,95789.0,95788.0,0.0001714]
[1734885317607,0.3101004,95789.0,95788.0,0.0001714]
[1734885318029,0.208776,95796.0,95788.0,0.0001714]
[1734885318237,0.00105137,95795.0,95788.0,0.0001714]
[1734885318529,0.0124011,95789.0,95788.0,0.0001714]
[1734885319295,8.57e-05,95790.0,95789.0,0.208792]
[1734885319875,8.57e-05,95790.0,95788.0,0.0001714]
[1734885320305,8.57e-05,95790.0,95788.0,0.2089654]
[1734885321317,8.57e-05,95790.0,95789.0,0.005]
[1734885321845,8.57e-05,95790.0,95788.0,0.2079654]
[1734885323444,8.57e-05,95790.0,95788.0,0.2089654]
[1734885323621,8.57e-05,95790.0,95788.0,0.3102738]
[1734885323821,8.57e-05,95790.0,95789.0,0.10235219]
[1734885324435,8.57e-05,95790.0,95789.0,0.1763084]
[1734885324855,8.57e-05,95790.0,95789.0,0.17735215]
[1734885325675,8.57e-05,95790.0,95789.0,0.19784491]
[1734885326133,0.0010857,95790.0,95789.0,0.20684491]
[1734885326361,8.57e-05,95790.0,95789.0,0.64535193]
[1734885326683,8.57e-05,95790.0,95789.0,0.66935193]
[1734885327552,8.57e-05,95790.0,95789.0,0.66835193]
[1734885329158,0.0080857,95790.0,95789.0,0.66935193]
[1734885332039,0.0080857,95790.0,95789.0,0.66952333]
[1734885332901,0.0080857,95790.0,95789.0,0.79652333]
[1734885333106,0.0080857,95790.0,95789.0,0.81952333]
[1734885333216,0.0080857,95790.0,95789.0,0.91203025]
[1734885334283,0.0080857,95790.0,95789.0,1.32182608]
[1734885334837,0.0080857,95790.0,95789.0,1.29882608]
[1734885335473,0.0080857,95790.0,95789.0,0.96435313]
[1734885335669,0.0080857,95790.0,95789.0,0.76755197]
[1734885336069,0.0080857,95790.0,95789.0,0.86886037]
[1734885336593,0.0080857,95790.0,95789.0,0.6898079]
[1734885337204,0.0080857,95790.0,95789.0,0.7679079]
[1734885338194,0.0080857,95790.0,95789.0,0.62913057]
[1734885339807,0.0080857,95790.0,95789.0,0.7679079]
[1734885340606,0.0080857,95790.0,95789.0,0.6898079]
[1734885341020,0.0080857,95790.0,95789.0,0.55103057]
[1734885342115,0.0080857,95790.0,95789.0,0.64367966]
[1734885342688,0.0080857,95790.0,95789.0,0.54237126]
[1734885343713,0.0080857,95790.0,95789.0,0.09382049]
[1734885344112,8.57e-05,95790.0,95789.0,0.09282049]
[1734885344430,0.0010857,95790.0,95789.0,0.09982049]
[1734885344826,0.0010857,95790.0,95789.0,0.0071714]
[1734885346645,0.0010857,95790.0,95789.0,0.55807443]
[1734885346873,0.0010857,95790.0,95789.0,0.55103057]
[1734885347070,0.0010857,95790.0,95789.0,0.62943057]
[1734885347293,0.0010857,95790.0,95789.0,0.67853057]
[1734885347871,0.0010857,95790.0,95789.0,0.85153057]
[1734885348205,0.0010857,95790.0,95789.0,0.86182611]
[1734885349195,0.0010857,95790.0,95789.0,1.1806337]
[1734885351213,7e-07,95804.0,95790.0,0.1784]
[1734885351422,8.57e-05,95811.0,95810.0,0.381746]
[1734885351423,4e-07,95811.0,95810.0,0.381746]
[1734885351659,4e-07,95811.0,95810.0,1.11000517]
[1734885351660,5e-07,95811.0,95810.0,1.11000517]
[1734885353680,5e-07,95811.0,95810.0,1.42881276]
[1734885354226,0.0050005,95811.0,95810.0,1.42881276]
[1734885354803,0.0050005,95811.0,95810.0,1.71632059]
[1734885356238,0.0050005,95811.0,95810.0,1.43908736]
[1734885357741,0.0050861,95811.0,95810.0,1.43908736]
[1734885358633,8.55e-05,95830.0,95829.0,0.208705]
[1734885358711,0.00018151,95830.0,95829.0,0.3100134]
[1734885361660,0.00018151,95830.0,95829.0,0.75956417]
[1734885361857,0.00018151,95830.0,95829.0,0.65825577]
[1734885362507,0.00018151,95830.0,95829.0,0.65125577]
[1734885364011,0.00118151,95830.0,95829.0,0.66025577]
[1734885364434,0.00018151,95830.0,95829.0,0.65125577]
[1734885364797,0.00018151,95830.0,95829.0,0.202705]
[1734885366361,0.00018151,95830.0,95829.0,0.207705]
[1734885366871,0.00018151,95830.0,95829.0,0.201705]
[1734885367833,0.00018151,95830.0,95824.0,0.208715]
[1734885368170,0.00018151,95830.0,95819.0,0.208725]
[1734885368372,0.00018151,95830.0,95819.0,0.417451]
[1734885368568,0.00018151,95830.0,95819.0,0.208725]
[1734885368788,0.00018151,95830.0,95829.0,0.004]
[1734885368992,0.08178151,95830.0,95829.0,0.004]
[1734885369435,0.00018151,95830.0,95827.0,0.417416]
[1734885369604,0.00018151,95830.0,95829.0,0.0001712]
[1734885372026,0.00018151,95830.0,95829.0,0.004]
[1734885375290,0.00018151,95830.0,95829.0,0.20974843]
[1734885375524,0.00018151,95830.0,95829.0,0.3110134]
[1734885375945,0.00018151,95830.0,95829.0,0.75856417]
[1734885376149,0.00018151,95830.0,95829.0,0.83786417]
[1734885376630,0.00018151,95830.0,95829.0,0.83386417]
[1734885376774,0.00018151,95830.0,95829.0,0.82786417]
[1734885377627,0.00118151,95830.0,95829.0,0.83686417]
[1734885378371,0.00118151,95830.0,95829.0,0.85986417]
[1734885380069,0.00118151,95830.0,95829.0,1.32239096]
[1734885380646,0.00118151,95830.0,95829.0,1.29939096]
[1734885381422,0.00118151,95830.0,95829.0,0.83703537]
[1734885381751,0.00118151,95830.0,95829.0,0.85804669]
[1734885381953,0.00118151,95830.0,95829.0,0.85204669]
[1734885386019,0.00118151,95830.0,95829.0,0.65442697]
[1734885386820,0.00118151,95830.0,95829.0,0.64842697]
[1734885387533,0.01348478,95830.0,95829.0,0.64842697]
[1734885388819,0.01348478,95830.0,95829.0,0.1998762]
[1734885389023,0.01348478,95830.0,95829.0,0.30222806]
[1734885389250,0.01348478,95830.0,95829.0,0.3844846]
[1734885389481,0.01348478,95830.0,95829.0,0.4334846]
[1734885389674,0.00118151,95830.0,95829.0,0.4334846]
[1734885390256,0.00118151,95830.0,95829.0,0.75819983]
[1734885391744,0.00118151,95830.0,95829.0,1.3853366]
[1734885393171,0.00118151,95830.0,95829.0,1.2007506]
[1734885393592,0.00118151,95830.0,95829.0,1.3737506]
[1734885393795,5e-07,95849.0,95848.0,0.513963]
[1734885394048,8.57e-05,95879.0,95872.0,0.208611]
[1734885394250,0.01524795,95875.0,95874.0,0.65715777]
[1734885394465,0.01524795,95875.0,95874.0,0.75846617]
[1734885396127,0.01524795,95875.0,95874.0,1.0831814]
[1734885396949,0.01524795,95875.0,95874.0,1.0771814]
[1734885397559,0.01524795,95875.0,95874.0,0.75246617]
[1734885397765,0.01524795,95875.0,95874.0,0.3099154]
[1734885399478,0.01524795,95875.0,95874.0,0.3620154]
[1734885400030,0.01524795,95875.0,95874.0,0.3570154]
[1734885400274,0.01524795,95875.0,95874.0,0.4397154]
[1734885400275,0.01024795,95875.0,95874.0,0.4397154]
[1734885400864,0.01024795,95875.0,95874.0,0.88226617]
[1734885401330,0.01024795,95875.0,95874.0,0.88326617]
[1734885401778,0.01024795,95875.0,95874.0,0.83616617]
[1734885402456,0.01024795,95875.0,95874.0,0.83516617]
[1734885402866,0.01024795,95875.0,95874.0,0.83816617]
[1734885403043,0.01024795,95875.0,95874.0,0.83516617]
[1734885403443,0.01424795,95875.0,95874.0,0.83616617]
[1734885403912,0.01424795,95875.0,95874.0,0.75346617]
[1734885404179,0.01424795,95875.0,95874.0,0.65215777]
[1734885404573,0.01433355,95875.0,95874.0,0.65215777]
[1734885405502,0.01433355,95875.0,95874.0,0.75346617]
[1734885405708,0.01033355,95875.0,95874.0,0.75246617]
[1734885405904,0.01033355,95875.0,95874.0,0.75746617]
[1734885406319,0.01033355,95875.0,95874.0,0.75246617]
[1734885406535,0.01233355,95875.0,95874.0,0.75246617]
[1734885406743,0.01233355,95875.0,95874.0,0.3039154]
[1734885406990,0.01233355,95875.0,95874.0,0.202607]
[1734885407359,0.01033355,95875.0,95874.0,0.202607]
[1734885408412,0.01033355,95875.0,95874.0,0.3039154]
[1734885409731,0.01133355,95875.0,95874.0,0.3049154]
[1734885410032,0.01133355,95875.0,95874.0,0.74746617]
[1734885410153,0.01033355,95875.0,95874.0,0.64515777]
[1734885410355,0.01133355,95875.0,95874.0,0.64615777]
[1734885411190,0.01033355,95875.0,95874.0,0.64515777]
[1734885411515,0.01133355,95875.0,95874.0,0.64615777]
[1734885412094,0.01133355,95875.0,95874.0,0.64015777]
[1734885412890,0.01133355,95875.0,95874.0,0.197607]
[1734885413014,0.01033355,95875.0,95874.0,0.196607]
[1734885413278,0.01133355,95875.0,95874.0,0.204607]
[1734885413396,0.01033355,95875.0,95874.0,0.196607]
[1734885413778,0.01133355,95875.0,95874.0,0.203607]
[1734885415071,0.01133355,95875.0,95874.0,0.3827154]
[1734885415855,0.01133355,95875.0,95874.0,0.82526617]
[1734885416401,0.01133355,95875.0,95874.0,0.82543737]
[1734885416806,0.01133355,95875.0,95874.0,0.81943737]
[1734885417048,0.00124795,95875.0,95874.0,0.81943737]
[1734885419545,9.541e-05,95875.0,95874.0,0.81943737]
[1734885422559,9.541e-05,95875.0,95874.0,0.81343737]
[1734885426413,9.541e-05,95875.0,95874.0,0.98643737]
[1734885427596,8.57e-05,95879.0,95876.0,0.208602]
[1734885427721,8.57e-05,95879.0,95878.0,0.208598]
[1734885427921,8.57e-05,95879.0,95878.0,0.3099064]
[1734885430397,0.0060857,95879.0,95878.0,0.3109064]
[1734885430757,0.0060857,95879.0,95878.0,0.75345717]
[1734885432936,0.0060857,95879.0,95878.0,0.82925717]
[1734885433800,8.57e-05,95879.0,95878.0,0.82825717]
[1734885433968,8.57e-05,95879.0,95878.0,0.82925717]
[1734885434129,0.0090857,95879.0,95878.0,0.82925717]
[1734885436155,0.0090857,95879.0,95878.0,1.40017519]
[1734885436956,0.0090857,95879.0,95878.0,1.16970998]
[1734885437108,0.0822,95920.0,95904.0,0.208541]
[1734885437306,0.00054094,95907.0,95904.0,0.208541]
[1734885438860,0.00054094,95907.0,95904.0,0.417082]
[1734885440073,0.00054094,95907.0,95904.0,0.418082]
[1734885440276,0.00054094,95907.0,95904.0,0.209541]
[1734885440695,0.01230127,95906.0,95904.0,0.209541]
[1734885440899,0.01230127,95906.0,95904.0,0.208541]
[1734885441116,0.00054094,95907.0,95904.0,0.208541]
[1734885441117,0.01230127,95905.0,95904.0,0.208541]
[1734885441895,0.01230127,95905.0,95904.0,0.202541]
[1734885442701,0.01230127,95905.0,95900.0,0.208548]
[1734885442927,0.01230127,95905.0,95904.0,0.001]
[1734885443821,0.01230127,95905.0,95900.0,0.208548]
[1734885443985,0.01230127,95905.0,95904.0,0.005]
[1734885445242,0.19070967,95905.0,95904.0,0.005]
[1734885445457,0.23940967,95905.0,95904.0,0.005]
[1734885445699,0.3771084,95905.0,95904.0,0.005]
[1734885446298,0.208541,95904.0,95892.0,0.208566]
[1734885446516,0.208541,95904.0,95890.0,0.09229598]
[1734885446793,0.208541,95904.0,95891.0,0.20857]
[1734885447414,0.208551,95900.0,95889.0,0.202573]
[1734885447652,0.208544,95903.0,95889.0,0.202573]
[1734885448073,0.01231781,95899.0,95891.0,0.001]
[1734885448410,0.22087081,95899.0,95891.0,0.001]
[1734885448631,0.42942381,95899.0,95891.0,0.001]
[1734885449060,0.01231781,95898.0,95891.0,0.001]
[1734885449440,0.01231781,95898.0,95892.0,0.208567]
[1734885450100,0.01231781,95897.0,95892.0,0.208567]
[1734885450318,0.01231781,95897.0,95891.0,0.001]
[1734885450473,0.01231781,95896.0,95891.0,0.001]
[1734885451078,0.21904241,95903.0,95889.0,0.208574]
[1734885451079,0.01231781,95895.0,95889.0,0.208574]
[1734885451704,0.01231781,95894.0,95889.0,0.208574]
[1734885451906,0.01231781,95894.0,95891.0,0.001]
[1734885452113,0.01231781,95893.0,95891.0,0.001]
[1734885452431,0.01231781,95893.0,95889.0,0.411148]
[1734885452579,0.01231781,95892.0,95889.0,0.202574]
[1734885452794,0.01231781,95892.0,95884.0,0.208583]
[1734885452991,0.01231781,95891.0,95884.0,0.417168]
[1734885453252,0.01231781,95891.0,95889.0,0.002]
[1734885453462,0.01231781,95890.0,95889.0,0.002]
[1734885454020,0.01231781,95890.0,95889.0,0.0787]
[1734885454442,0.01231781,95890.0,95889.0,0.0687]
[1734885454623,0.015,95894.0,95890.0,0.417144]
[1734885455203,0.01230922,95893.0,95891.0,0.00104277]
[1734885455402,0.01230922,95893.0,95892.0,0.208567]
[1734885455808,0.015,95894.0,95892.0,0.3098754]
[1734885456080,0.015,95894.0,95893.0,0.1013084]
[1734885457262,0.015,95894.0,95893.0,0.0953084]
[1734885457869,0.015,95894.0,95893.0,0.53785917]
[1734885459187,0.016,95894.0,95893.0,0.54485917]
[1734885459419,0.015,95894.0,95893.0,0.53785917]
[1734885459964,0.016,95894.0,95893.0,0.54585917]
[1734885460777,0.016,95894.0,95893.0,0.68438967]
[1734885461450,0.015,95894.0,95893.0,0.82638967]
[1734885461781,0.015,95894.0,95893.0,0.91008967]
[1734885461928,0.015,95894.0,95893.0,0.89708967]
[1734885462129,0.015,95894.0,95893.0,1.09427882]
[1734885462338,0.015,95894.0,95893.0,1.10227882]
[1734885464695,0.015,95894.0,95893.0,1.09427882]
[1734885465025,0.015,95894.0,95893.0,1.10327882]
[1734885465483,0.015,95894.0,95893.0,1.09427882]
[1734885465684,0.015,95894.0,95893.0,1.10327882]
[1734885466259,0.015,95894.0,95893.0,1.09427882]
[1734885466767,0.015,95894.0,95893.0,0.77827042]
[1734885467765,0.015,95894.0,95893.0,0.77927042]
[1734885467766,0.02,95894.0,95893.0,0.77927042]
[1734885467958,0.015,95894.0,95893.0,0.77827042]
[1734885468168,0.015,95894.0,95893.0,0.53491467]
[1734885468366,0.02730061,95894.0,95893.0,0.54391467]
[1734885468807,0.02730061,95894.0,95893.0,0.53491467]
[1734885468968,0.02730061,95894.0,95893.0,0.44955077]
[1734885471838,0.02730061,95894.0,95893.0,0.44355077]
[1734885472447,0.10400061,95894.0,95893.0,0.44355077]
[1734885472824,0.15350061,95894.0,95893.0,0.44355077]
[1734885473027,0.15350061,95894.0,95893.0,0.007]
[1734885473227,0.40480901,95894.0,95889.0,0.000171]
[1734885473428,0.15,95892.0,95889.0,0.000171]
[1734885473634,0.1013084,95891.0,95889.0,0.000171]
[1734885474114,0.15,95890.0,95889.0,0.000171]
[1734885474314,0.2513084,95890.0,95889.0,0.000171]
[1734885476043,0.4280084,95890.0,95889.0,0.000171]
[1734885476368,0.4330084,95890.0,95889.0,0.000171]
[1734885476940,0.208602,95877.0,95866.0,0.2031352]
[1734885477304,0.01227342,95876.0,95866.0,0.2031352]
[1734885477678,0.01227342,95875.0,95866.0,0.2031352]
[1734885478038,0.01227342,95875.0,95869.0,0.208615]
[1734885478233,0.01227342,95876.0,95869.0,0.208615]
[1734885478438,0.01227342,95883.0,95869.0,0.208615]
[1734885478633,0.208589,95882.0,95869.0,0.208615]
[1734885479256,0.208594,95880.0,95863.0,0.208631]
[1734885479473,0.208594,95880.0,95869.0,0.001]
[1734885479762,0.208594,95880.0,95867.0,0.20862]
[1734885479763,0.01227342,95879.0,95870.0,0.208615]
[1734885480058,0.01227342,95879.0,95874.0,0.208606]
[1734885480248,0.01227342,95879.0,95870.0,0.208615]
[1734885480483,0.208585,95884.0,95870.0,0.208615]
[1734885480601,0.002,95882.0,95874.0,0.208606]
[1734885480826,0.002,95882.0,95875.0,0.0807]
[1734885481011,0.002,95882.0,95881.0,0.208591]
[1734885482292,0.0150855,95894.0,95887.0,0.208578]
[1734885482697,0.00292723,95894.0,95887.0,0.208578]
[1734885482969,0.00292723,95894.0,95883.0,0.208586]
[1734885483194,0.208576,95889.0,95878.0,0.43655077]
[1734885483407,0.208576,95889.0,95881.0,0.003]
[1734885483613,0.31280063,95894.0,95882.0,0.208589]
[1734885483810,0.1013084,95893.0,95882.0,0.208589]
[1734885484030,0.01226622,95893.0,95890.0,0.20857]
[1734885484704,0.01226622,95893.0,95887.0,0.208578]
[1734885484912,0.00492723,95894.0,95887.0,0.208578]
[1734885485903,0.00492723,95894.0,95888.0,0.208576]
[1734885486550,0.00292723,95894.0,95888.0,0.208576]
[1734885486880,0.00292723,95894.0,95892.0,0.202566]
[1734885488127,0.00346817,95894.0,95892.0,0.202566]
[1734885491911,0.00346817,95894.0,95892.0,0.196566]
[1734885492464,0.00346817,95894.0,95892.0,0.198566]
[1734885492668,0.00346817,95894.0,95892.0,0.196566]
[1734885493254,0.00446817,95894.0,95892.0,0.204566]
[1734885494077,0.00346817,95894.0,95892.0,0.196566]
[1734885494493,0.00346817,95894.0,95892.0,0.201566]
[1734885496179,0.00346817,95894.0,95892.0,0.196566]
[1734885496519,0.00346817,95894.0,95892.0,0.198566]
[1734885496730,0.00346817,95894.0,95892.0,0.196566]
[1734885496934,0.00346817,95894.0,95892.0,0.62711677]
[1734885497128,0.00346817,95894.0,95892.0,0.63111677]
[1734885497330,0.00346817,95894.0,95892.0,0.62711677]
[1734885497756,0.00346817,95894.0,95892.0,0.63311677]
[1734885498332,0.00346817,95894.0,95892.0,0.44255077]
[1734885499268,0.22084534,95893.0,95892.0,0.44255077]
[1734885499438,0.01228034,95893.0,95892.0,0.44255077]
[1734885499598,0.01228034,95893.0,95892.0,0.43655077]
[1734885499799,0.01228034,95893.0,95892.0,0.43955077]
[1734885500031,0.01228034,95893.0,95892.0,0.003]
[1734885500216,0.01228034,95893.0,95881.0,0.20859]
[1734885500928,0.00346817,95894.0,95881.0,0.417181]
[1734885501474,0.00346817,95894.0,95881.0,0.20859]
[1734885501648,0.208565,95893.0,95881.0,0.20859]
[1734885501854,0.208565,95893.0,95877.0,0.43655077]
[1734885501855,0.208575,95889.0,95877.0,0.43055077]
[1734885502064,0.00346817,95894.0,95878.0,0.417196]
[1734885502427,0.00346817,95894.0,95878.0,0.208598]
[1734885502428,0.208576,95888.0,95878.0,0.208598]
[1734885502648,0.208576,95888.0,95877.0,0.43055077]
[1734885502851,0.208576,95888.0,95875.0,0.208604]
[1734885502852,0.00346817,95894.0,95872.0,0.43055077]
[1734885503171,0.417207,95876.0,95872.0,0.43055077]
[1734885503375,0.01228515,95875.0,95872.0,0.43055077]
[1734885503718,0.01228515,95875.0,95870.0,0.000171]
[1734885504039,0.01228515,95874.0,95870.0,0.000171]
[1734885504388,0.01228515,95873.0,95870.0,0.000171]
[1734885504571,0.01228515,95873.0,95872.0,0.004]
[1734885504773,0.208603,95876.0,95872.0,0.004]
[1734885504969,0.208603,95876.0,95870.0,0.000171]
[1734885505230,0.01228399,95875.0,95870.0,0.005171]
[1734885505790,0.01228399,95874.0,95870.0,0.005171]
[1734885506392,0.208603,95876.0,95870.0,0.005171]
[1734885506591,0.208603,95876.0,95870.0,0.000171]
[1734885506817,0.208603,95876.0,95863.0,0.2028]
[1734885507229,0.208603,95876.0,95872.0,0.004]
[1734885507554,0.208596,95879.0,95862.0,0.43055077]
[1734885507724,0.208621,95868.0,95862.0,0.43055077]
[1734885508071,0.208614,95871.0,95863.0,0.004]
[1734885508244,0.208603,95876.0,95863.0,0.004]
[1734885508460,0.208622,95867.0,95863.0,0.004]
[1734885508756,0.208631,95863.0,95862.0,0.43055077]
[1734885509353,0.208631,95863.0,95851.0,0.43055077]
[1734885509548,0.208642,95858.0,95851.0,0.43055077]
[1734885510042,0.22091534,95863.0,95851.0,0.43055077]
[1734885510043,0.208651,95854.0,95851.0,0.43071312]
[1734885510193,0.208651,95854.0,95851.0,0.00016235]
[1734885510400,0.417302,95854.0,95851.0,0.00016235]
[1734885510799,0.436155,95852.0,95851.0,0.00016235]
[1734885510985,0.7374634,95852.0,95851.0,0.00016235]
[1734885511386,0.74974774,95852.0,95851.0,0.00016235]
[1734885511633,0.74974774,95852.0,95851.0,0.00416235]
[1734885511853,0.208696,95833.0,95832.0,0.08652625]
[1734885512238,0.4600044,95833.0,95832.0,0.08652625]
[1734885512449,0.4600044,95833.0,95829.0,0.0001712]
[1734885512450,0.2513084,95833.0,95829.0,0.0001712]
[1734885512619,0.4600064,95832.0,95829.0,0.0001712]
[1734885513187,0.208726,95820.0,95806.0,0.1989242]
[1734885513454,0.208726,95820.0,95806.0,0.19902021]
[1734885514697,0.208729,95818.0,95807.0,0.208753]
[1734885515441,0.01228434,95829.0,95806.0,9.601e-05]
[1734885515442,0.208748,95810.0,95806.0,9.601e-05]
[1734885515652,0.0775,95826.0,95806.0,9.601e-05]
[1734885515893,0.15,95824.0,95806.0,9.601e-05]
[1734885516070,0.1,95818.0,95806.0,0.00026741]
[1734885516287,0.208748,95809.0,95806.0,0.00026741]
[1734885516494,0.208753,95807.0,95806.0,0.00026741]
[1734885516651,0.3100614,95807.0,95806.0,0.00026741]
[1734885516905,0.3100614,95807.0,95789.0,0.20340081]
[1734885516906,0.208765,95802.0,95789.0,0.20340081]
[1734885517110,0.208748,95809.0,95794.0,0.208781]